bitfinex/quotes_ETHUSD_20241013
["timestamp","ask_amount","ask_price","bid_price","bid_amount"]
[1728834254955,0.14962472,2442.6,2442.4,0.9389177]
[1728834257455,11.1868,2443.0,2442.4,0.9389177]
[1728834257665,0.14493654,2442.5,2442.4,0.9389177]
[1728834257964,7.09333,2443.0,2442.4,0.9389177]
[1728834258265,0.14493654,2442.9,2442.4,0.9389177]
[1728834258767,0.14493654,2442.9,2442.6,0.7588]
[1728834258925,0.14493654,2442.9,2442.7,0.55]
[1728834259267,7.31,2443.4,2442.8,0.7588]
[1728834259756,8.00683722,2443.4,2442.8,1.299067]
[1728834259934,8.00683722,2443.4,2442.8,0.7588]
[1728834260754,3.0,2443.3,2442.8,0.7588]
[1728834262173,3.0,2443.3,2442.8,0.84065987]
[1728834262469,0.4099,2443.7,2443.2,0.7588]
[1728834262827,0.4099,2443.5,2443.2,0.7588]
[1728834263224,1.10673722,2443.5,2443.2,0.7588]
[1728834263764,0.4099,2443.5,2443.2,0.7588]
[1728834264130,4.50248,2443.5,2443.2,0.7588]
[1728834264323,7.09269,2443.4,2443.2,0.7588]
[1728834265236,7.78952722,2443.4,2443.2,0.7588]
[1728834265562,12.3590453,2443.4,2443.2,0.7588]
[1728834265764,7.09269,2443.4,2443.2,0.7588]
[1728834265952,11.18545,2443.4,2443.2,0.7588]
[1728834266435,7.09269,2443.4,2443.2,0.7588]
[1728834266638,11.18546,2443.4,2443.2,0.7588]
[1728834266840,7.09269,2443.4,2443.2,0.7588]
[1728834267036,3.4099,2443.5,2443.2,0.7588]
[1728834267238,7.50251,2443.5,2443.2,0.7588]
[1728834267846,3.4099,2443.5,2443.2,0.7588]
[1728834268247,0.4099,2443.5,2443.2,0.7588]
[1728834268516,3.4099,2443.5,2443.2,0.7588]
[1728834269041,0.4099,2443.5,2443.2,0.7588]
[1728834269378,4.09203,2443.8,2443.2,0.7588]
[1728834269549,8.18411,2443.8,2443.4,0.7588]
[1728834269746,4.09203,2443.8,2443.4,0.7588]
[1728834270284,4.09178,2444.0,2443.4,0.7588]
[1728834270488,4.09183,2443.9,2443.4,0.7588]
[1728834270770,7.09207,2443.8,2443.4,0.7588]
[1728834271172,0.13250091,2443.7,2443.4,0.7588]
[1728834271379,3.0,2443.6,2443.4,0.7588]
[1728834271892,0.13255225,2443.5,2443.4,0.7588]
[1728834273085,0.13255225,2443.5,2443.4,1.3088]
[1728834273266,0.13255225,2443.5,2443.4,0.7588]
[1728834273882,3.0,2443.7,2443.4,0.7588]
[1728834274050,0.13255225,2443.5,2443.4,0.7588]
[1728834274244,7.09216,2443.7,2443.4,0.7588]
[1728834274451,0.13264025,2443.5,2443.4,0.7588]
[1728834274677,7.09216,2443.7,2443.4,0.7588]
[1728834274983,0.13264025,2443.5,2443.4,0.7588]
[1728834275181,0.13264025,2443.6,2443.4,0.7588]
[1728834280670,4.09293,2443.3,2443.2,0.7671]
[1728834280871,8.18608,2443.2,2442.5,0.7671]
[1728834281083,4.09352,2442.9,2442.5,0.7671]
[1728834281413,0.13270625,2442.8,2442.5,0.7671]
[1728834281941,4.09334,2443.0,2442.5,0.7671]
[1728834282071,7.09416,2442.5,2442.4,0.1228177]
[1728834282423,7.22671958,2442.5,2442.4,0.1228177]
[1728834287681,0.13255958,2442.5,2442.4,0.1228177]
[1728834287913,0.13255958,2442.5,2442.4,0.8899177]
[1728834288287,3.0,2442.7,2442.4,0.8899177]
[1728834288501,0.13189938,2442.5,2442.4,0.8899177]
[1728834288690,3.0,2442.7,2442.4,0.8899177]
[1728834288875,0.13189938,2442.5,2442.4,0.8899177]
[1728834289082,3.0,2442.7,2442.4,0.8899177]
[1728834289278,0.13196541,2442.5,2442.4,0.8899177]
[1728834289494,7.09353,2442.9,2442.4,1.4399177]
[1728834289718,0.13196541,2442.5,2442.4,1.4399177]
[1728834289882,7.09353,2442.9,2442.4,1.4399177]
[1728834290221,3.0,2442.9,2442.4,1.4399177]
[1728834290428,0.13196541,2442.8,2442.5,0.55]
[1728834290611,4.09343,2443.0,2442.5,0.55]
[1728834290817,0.1315253,2442.7,2442.6,0.7671]
[1728834290979,4.09283,2443.3,2442.7,1.3171]
[1728834291183,0.1316207,2443.2,2442.9,0.55]
[1728834291507,4.09276,2443.4,2442.9,0.55]
[1728834291683,0.1272731,2443.1,2442.9,0.55]
[1728834292014,0.12761142,2443.0,2442.9,0.55]
[1728834292185,4.09276,2443.4,2442.9,0.55]
[1728834292385,0.12761142,2443.3,2442.9,0.55]
[1728834292789,4.09249,2443.5,2443.1,0.55]
[1728834293021,0.12800844,2443.4,2443.1,0.55]
[1728834293725,0.12800844,2443.4,2443.2,0.7955]
[1728834293888,0.12800844,2443.4,2443.3,0.55]
[1728834294223,0.12384518,2443.4,2443.3,0.55]
[1728834294381,4.09177,2444.0,2443.3,0.55]
[1728834294582,0.12384518,2443.9,2443.4,0.55]
[1728834295006,0.12384518,2443.9,2443.4,1.03818258]
[1728834295208,4.09142,2444.2,2443.6,0.55]
[1728834295411,0.12384518,2443.8,2443.6,0.55]
[1728834295616,4.09157,2444.1,2443.6,0.55]
[1728834295926,7.31,2444.5,2443.9,0.55]
[1728834296123,4.09075,2444.6,2443.9,1.03818258]
[1728834296124,4.09099,2444.4,2443.9,1.03818258]
[1728834296317,4.09099,2444.4,2443.8,0.55]
[1728834296609,4.82272468,2444.3,2443.8,0.55]
[1728834296934,0.73156468,2444.3,2443.8,0.55]
[1728834297106,3.73156468,2444.3,2443.8,0.55]
[1728834297527,4.09155,2444.1,2443.7,0.7955]
[1728834297840,4.09132,2444.2,2443.7,0.7955]
[1728834297998,4.87359947,2444.2,2443.7,0.7955]
[1728834298195,7.09123,2444.3,2443.8,0.55]
[1728834298636,11.18254,2444.3,2443.8,0.55]
[1728834299339,3.0,2444.3,2443.7,0.7955]
[1728834299521,4.09149,2444.1,2443.7,0.7955]
[1728834300247,4.09174,2444.0,2443.7,0.7955]
[1728834301100,0.11638735,2443.9,2443.7,0.7955]
[1728834301998,4.09141,2444.2,2443.7,0.7955]
[1728834302199,3.0,2444.3,2443.7,0.7955]
[1728834302200,0.11638735,2444.1,2443.8,0.55]
[1728834302415,3.0,2444.3,2443.8,1.03818258]
[1728834302708,3.0,2444.3,2443.9,1.3319]
[1728834302709,0.11634315,2444.0,2443.9,1.3319]
[1728834302946,3.0,2444.3,2443.9,1.3319]
[1728834303151,0.11634315,2444.0,2443.9,1.3319]
[1728834303349,3.0,2444.5,2444.0,0.55]
[1728834304048,7.09085,2444.5,2444.0,0.55]
[1728834305153,3.7842,2444.3,2443.7,0.7819]
[1728834305355,3.0,2444.0,2443.7,0.7819]
[1728834305848,3.0,2444.2,2443.7,0.7819]
[1728834306633,7.09133,2444.2,2443.7,0.7819]
[1728834306830,7.09133,2444.2,2443.8,0.55]
[1728834307035,3.0,2444.2,2443.8,0.55]
[1728834307236,3.0,2444.0,2443.8,0.55]
[1728834308751,3.0,2444.2,2443.8,0.55]
[1728834308936,7.09134,2444.2,2443.8,0.55]
[1728834309755,4.09152,2444.1,2443.8,0.55]
[1728834309974,3.0,2444.0,2443.8,0.55]
[1728834310172,3.0,2444.2,2443.8,0.55]
[1728834310347,3.0,2444.3,2443.8,0.7819]
[1728834310673,3.0,2444.3,2443.9,0.43182258]
[1728834310869,7.09125,2444.3,2443.9,0.55]
[1728834311229,7.09082,2444.5,2443.9,0.55]
[1728834311590,3.0,2444.7,2444.1,0.55]
[1728834311733,3.0,2444.7,2444.2,0.7819]
[1728834311934,7.09057,2444.7,2444.2,0.7819]
[1728834312134,4.09057,2444.7,2444.2,0.7819]
[1728834313072,0.8494884,2445.0,2444.3,0.61399281]
[1728834313371,4.9395784,2445.0,2444.4,0.7924]
[1728834313766,4.09017,2444.9,2444.4,0.7924]
[1728834314071,8.18042,2444.9,2444.4,0.7924]
[1728834314274,4.09032,2444.8,2444.4,0.7924]
[1728834314575,4.09066,2444.6,2444.4,0.7924]
[1728834316038,0.11361351,2444.5,2444.4,0.7924]
[1728834316579,4.09146,2444.2,2443.7,0.7924]
[1728834316781,0.86601351,2444.5,2443.7,0.7924]
[1728834316782,4.09191,2443.9,2443.7,0.7924]
[1728834317088,4.09218,2443.7,2443.3,0.7924]
[1728834317776,0.11360611,2443.6,2443.3,0.7924]
[1728834318152,4.09174,2444.0,2443.3,0.7924]
[1728834318357,0.11360611,2443.5,2443.4,0.55]
[1728834318988,4.09203,2443.8,2443.4,0.55]
[1728834319166,0.11360611,2443.5,2443.4,0.55]
[1728834319375,4.09203,2443.8,2443.4,0.55]
[1728834319555,0.11360611,2443.5,2443.4,0.55]
[1728834320097,4.09203,2443.8,2443.4,0.55]
[1728834320298,0.11360611,2443.5,2443.4,0.55]
[1728834320453,4.09203,2443.8,2443.4,0.55]
[1728834320650,0.11360611,2443.5,2443.4,0.55]
[1728834320898,4.09203,2443.8,2443.4,0.55]
[1728834321191,0.11360611,2443.5,2443.4,0.55]
[1728834321491,3.0,2444.2,2443.7,0.7901]
[1728834321693,4.09117,2444.3,2443.8,0.55]
[1728834322366,8.18243,2444.3,2443.8,0.55]
[1728834322695,8.18243,2444.3,2443.8,1.10169281]
[1728834322696,4.09117,2444.3,2443.8,1.10169281]
[1728834323371,3.0,2444.3,2443.9,0.7901]
[1728834323563,4.09033,2444.8,2444.2,4.17682806]
[1728834323910,4.09033,2444.8,2444.3,1.3401]
[1728834324255,4.09024,2444.9,2444.3,1.3401]
[1728834324459,4.09024,2444.9,2444.5,0.55]
[1728834324684,4.09041,2444.8,2444.5,0.55]
[1728834325207,4.08989,2445.1,2444.5,0.55]
[1728834325409,4.08989,2445.1,2444.6,0.02594215]
[1728834325410,4.08998,2445.0,2444.6,0.02594215]
[1728834325581,4.08998,2445.0,2444.7,0.7901]
[1728834326804,3.0,2445.2,2444.7,0.7901]
[1728834326971,4.09031,2444.8,2444.7,0.7901]
[1728834327171,4.09052,2444.7,2444.5,0.55]
[1728834327587,4.09026,2444.9,2444.5,0.55]
[1728834327873,4.09038,2444.8,2444.5,0.55]
[1728834330785,8.18084,2444.8,2444.5,0.55]
[1728834331312,0.11362824,2444.7,2444.5,0.55]
[1728834331485,4.09038,2444.8,2444.5,0.55]
[1728834331687,0.11362824,2444.6,2444.5,0.55]
[1728834331884,4.09021,2444.9,2444.5,0.55]
[1728834332087,0.11362824,2444.6,2444.5,0.55]
[1728834332269,4.09021,2444.9,2444.5,0.55]
[1728834332478,0.11362824,2444.6,2444.5,0.55]
[1728834332778,4.09032,2444.8,2444.5,0.55]
[1728834333002,0.11362824,2444.6,2444.5,0.55]
[1728834333174,4.09032,2444.8,2444.5,0.55]
[1728834333375,0.11362824,2444.6,2444.5,0.55]
[1728834333576,4.09009,2445.0,2444.5,0.55]
[1728834333577,3.0,2445.0,2444.7,0.55]
[1728834333780,7.09006,2445.0,2444.7,0.55]
[1728834334321,4.08981,2445.1,2444.7,0.62780484]
[1728834334322,3.0,2445.1,2444.7,0.62780484]
[1728834334485,3.0,2445.3,2444.9,0.55]
[1728834334996,4.08931,2445.4,2444.9,0.55]
[1728834335513,4.08911,2445.6,2444.9,0.55]
[1728834335730,4.85336,2445.8,2445.2,0.55]
[1728834336019,0.8494884,2446.1,2445.3,0.8139]
[1728834336197,4.08855,2445.9,2445.6,0.55]
[1728834337130,4.08856,2445.9,2445.6,0.55]
[1728834338221,4.08869,2445.8,2445.6,0.55]
[1728834338575,3.0,2445.8,2445.6,0.55]
[1728834338772,7.08873,2445.8,2445.6,0.55]
[1728834339213,4.08897,2445.6,2445.5,0.8139]
[1728834341015,3.0,2445.8,2445.5,0.8139]
[1728834341215,3.0,2445.8,2445.6,0.55]
[1728834341417,4.0888,2445.7,2445.6,0.55]
[1728834341616,3.0,2445.8,2445.6,0.55]
[1728834342127,4.0888,2445.7,2445.5,0.8139]
[1728834342320,7.08867,2445.8,2445.5,0.8139]
[1728834342611,3.0,2445.8,2445.6,0.55]
[1728834342811,4.08857,2445.9,2445.6,0.55]
[1728834342812,3.0,2445.9,2445.6,0.55]
[1728834344382,7.08848,2445.9,2445.6,0.55]
[1728834344721,3.0,2445.9,2445.6,0.55]
[1728834345404,7.0884,2446.0,2445.8,0.55]
[1728834345721,4.08847,2445.9,2445.8,0.55]
[1728834346080,4.19982977,2445.9,2445.8,0.55]
[1728834347319,0.11135977,2445.9,2445.8,0.55]
[1728834348330,0.11141133,2445.9,2445.8,0.55]
[1728834348482,0.11141133,2445.9,2445.8,0.63175224]
[1728834349028,3.0,2446.2,2445.8,0.63175224]
[1728834349189,0.11141133,2445.9,2445.8,0.63175224]
[1728834349729,3.0,2446.2,2445.8,0.63175224]
[1728834349881,0.11141133,2445.9,2445.8,0.63175224]
[1728834350083,7.08799,2446.2,2445.8,0.63175224]
[1728834350424,0.11141133,2445.9,2445.8,0.63175224]
[1728834350607,7.08799,2446.2,2445.8,0.63175224]
[1728834350807,0.11141133,2445.9,2445.8,0.55]
[1728834351016,7.08799,2446.2,2445.8,0.55]
[1728834351200,0.11141133,2445.9,2445.8,0.55]
[1728834351399,3.0,2446.0,2445.8,0.55]
[1728834351584,4.08838,2446.0,2445.8,0.55]
[1728834351785,0.11141133,2445.9,2445.8,0.55]
[1728834354341,3.0,2446.1,2445.8,0.55]
[1728834354496,0.11141133,2445.9,2445.8,0.55]
[1728834354830,3.0,2446.1,2445.8,0.55]
[1728834354985,0.11141133,2445.9,2445.8,0.55]
[1728834355191,3.0,2446.1,2445.8,0.55]
[1728834355427,0.11141133,2445.9,2445.8,0.55]
[1728834355628,7.08814,2446.1,2445.8,0.55]
[1728834355788,0.11141133,2445.9,2445.8,0.55]
[1728834355994,7.08814,2446.1,2445.8,0.55]
[1728834356196,0.11141133,2445.9,2445.8,0.55]
[1728834358195,0.11141133,2445.9,2445.7,0.8202]
[1728834359323,7.08824,2446.1,2445.7,0.8202]
[1728834359489,0.11145557,2445.8,2445.7,1.3702]
[1728834359690,7.08824,2446.1,2445.7,1.3702]
[1728834359691,7.08824,2446.1,2445.7,1.86014832]
[1728834359930,3.0,2446.1,2445.7,1.3702]
[1728834360138,4.19976557,2446.0,2445.7,1.3702]
[1728834360720,8.28815557,2446.0,2445.7,1.3702]
[1728834360916,4.08857,2445.9,2445.7,1.3702]
[1728834361230,4.08855,2445.9,2445.7,1.3702]
[1728834361433,0.11145557,2445.8,2445.7,1.3702]
[1728834363537,4.08847,2445.9,2445.7,1.3702]
[1728834363727,0.11145557,2445.8,2445.7,1.3702]
[1728834366122,3.0,2446.0,2445.7,1.3702]
[1728834366329,0.11224421,2445.9,2445.8,0.55]
[1728834366544,3.0,2446.2,2445.8,0.55]
[1728834366757,0.11225158,2445.9,2445.8,0.55]
[1728834367057,7.08798,2446.2,2445.8,0.55]
[1728834367365,8.17585,2446.3,2445.8,0.55]
[1728834367550,0.11225158,2446.1,2445.9,0.48994832]
[1728834367755,4.08815,2446.1,2445.9,0.48994832]
[1728834368075,0.11226631,2446.0,2445.8,0.55]
[1728834369226,4.20059631,2446.0,2445.8,0.55]
[1728834369528,4.20059631,2446.0,2444.9,0.40668699]
[1728834369529,4.9166,2445.8,2444.9,0.40668699]
[1728834369771,4.08923,2445.5,2444.9,0.87904401]
[1728834370343,4.08956,2445.3,2444.9,0.87904401]
[1728834370875,4.08931,2445.4,2444.9,0.87904401]
[1728834371080,0.11233998,2445.2,2444.9,0.87904401]
[1728834371497,4.08924,2445.5,2444.9,0.87904401]
[1728834371781,8.17854,2445.5,2445.1,0.55]
[1728834372084,8.17854,2445.5,2445.1,0.8266644]
[1728834372085,0.11233998,2445.4,2445.1,0.8266644]
[1728834372246,4.20175998,2445.4,2445.1,0.8266644]
[1728834373583,0.11233998,2445.4,2445.1,0.8266644]
[1728834373956,0.11233998,2445.4,2445.3,0.55]
[1728834374160,4.08859,2445.9,2445.3,0.55]
[1728834374352,0.11200842,2445.8,2445.5,0.55]
[1728834374843,0.11200842,2445.8,2445.6,0.7577]
[1728834375043,0.11200842,2445.8,2445.7,1.03369832]
[1728834375277,4.088,2446.2,2445.8,0.55]
[1728834375278,3.0,2446.1,2445.8,0.55]
[1728834375587,7.08815,2446.1,2445.8,0.55]
[1728834375897,7.08813,2446.2,2445.7,0.55]
[1728834376244,0.11201578,2446.1,2445.7,0.55]
[1728834376655,4.08807,2446.2,2445.7,0.55]
[1728834376656,8.17614,2446.2,2445.7,0.55]
[1728834376889,0.11201578,2446.0,2445.7,0.55]
[1728834377049,4.08807,2446.2,2445.7,0.55]
[1728834377246,0.11201578,2445.9,2445.7,1.03369832]
[1728834377451,4.08818,2446.1,2445.7,1.03369832]
[1728834377654,0.11201578,2445.8,2445.7,1.03369832]
[1728834378000,0.11201578,2445.8,2445.7,0.48369832]
[1728834378001,4.08864,2445.8,2445.7,0.48369832]
[1728834378171,4.20065578,2445.8,2445.6,0.7577]
[1728834379988,4.0888,2445.7,2445.6,0.7577]
[1728834380222,4.08917,2445.5,2445.3,0.55]
[1728834380355,4.08917,2445.5,2445.2,0.7516]
[1728834380756,4.20159365,2445.4,2445.2,0.7516]
[1728834382460,4.20159365,2445.4,2445.2,0.83315836]
[1728834383298,8.29098365,2445.4,2445.2,0.83315836]
[1728834383660,4.20159365,2445.4,2445.2,0.83315836]
[1728834383872,4.20159365,2445.4,2445.3,0.55]
[1728834383873,0.11227365,2445.4,2445.3,0.55]
[1728834384205,0.11227365,2445.4,2445.3,0.616391]
[1728834385963,0.11227365,2445.4,2445.3,0.55]
[1728834387560,4.20158365,2445.4,2445.3,0.55]
[1728834387766,4.08947,2445.3,2445.2,1.3016]
[1728834387998,4.20155208,2445.3,2445.2,1.3016]
[1728834389469,0.11208208,2445.3,2445.0,1.3016]
[1728834389705,0.11208208,2445.3,2445.0,1.6055368]
[1728834390206,4.08911,2445.6,2445.0,1.6055368]
[1728834390368,4.08911,2445.6,2445.2,0.55]
[1728834390563,0.11203788,2445.5,2445.2,0.55]
[1728834390892,0.11203788,2445.5,2445.1,4.28088323]
[1728834390893,0.11203788,2445.5,2445.4,0.55]
[1728834391205,4.08872,2445.8,2445.4,1.03308832]
[1728834391408,0.11203052,2445.7,2445.6,0.55]
[1728834391595,8.17689,2446.0,2445.6,0.55]
[1728834391781,4.20051052,2445.9,2445.6,0.55]
[1728834392816,0.11203052,2445.9,2445.7,0.7516]
[1728834393014,0.11203052,2445.9,2445.8,0.55]
[1728834393182,4.08824,2446.1,2445.8,0.55]
[1728834393510,0.11221472,2446.0,2445.8,0.55]
[1728834394507,3.0,2446.1,2445.8,0.55]
[1728834394804,0.11221472,2446.0,2445.8,0.55]
[1728834396179,4.08806,2446.2,2445.8,0.55]
[1728834396495,0.11221472,2446.1,2445.8,0.55]
[1728834398884,4.20035472,2446.1,2445.8,0.55]
[1728834400737,4.20035472,2446.1,2445.8,0.589569]
[1728834401733,8.28860472,2446.1,2445.8,0.589569]
[1728834401898,4.20035472,2446.1,2445.8,0.589569]
[1728834402234,8.28860472,2446.1,2445.8,0.589569]
[1728834403038,4.20035472,2446.1,2445.8,0.589569]
[1728834403441,0.11221472,2446.1,2445.8,0.589569]
[1728834403641,4.20042472,2446.1,2445.8,0.589569]
[1728834403801,4.08831,2446.0,2445.8,0.589569]
[1728834404005,4.08816,2446.1,2445.8,0.589569]
[1728834404207,0.11221472,2446.0,2445.8,0.589569]
[1728834408236,4.08799,2446.2,2445.8,0.589569]
[1728834408435,0.11243572,2446.1,2445.8,0.589569]
[1728834409117,0.11243572,2446.1,2446.0,0.55]
[1728834409322,0.11243572,2446.1,2446.0,1.1492019]
[1728834409527,3.0,2446.4,2446.0,1.1492019]
[1728834410020,0.11243572,2446.3,2446.0,1.1492019]
[1728834410728,0.11243572,2446.3,2446.1,0.764]
[1728834410929,0.11243572,2446.3,2446.2,0.55]
[1728834411142,0.11243572,2446.3,2446.2,1.20514819]
[1728834411351,5.7256884,2446.7,2446.2,1.20514819]
[1728834411521,0.11223285,2446.3,2446.2,1.20514819]
[1728834412004,4.9367884,2446.7,2446.2,1.20514819]
[1728834412211,0.11229916,2446.6,2446.5,0.55]
[1728834412406,0.11229916,2446.6,2446.5,1.03428832]
[1728834412648,4.08698,2446.8,2446.5,1.03428832]
[1728834412831,0.10502296,2446.6,2446.5,1.03428832]
[1728834413015,4.08698,2446.8,2446.5,1.03428832]
[1728834413343,0.10502296,2446.7,2446.5,1.03428832]
[1728834413719,4.08698,2446.8,2446.5,1.03428832]
[1728834413907,0.10502296,2446.6,2446.5,1.03428832]
[1728834414108,4.08698,2446.8,2446.5,1.03428832]
[1728834414354,0.10502296,2446.6,2446.5,1.03428832]
[1728834414507,4.08698,2446.8,2446.5,1.03428832]
[1728834415058,0.10520008,2446.7,2446.5,1.03428832]
[1728834415449,8.17381,2446.9,2446.5,1.03428832]
[1728834415610,0.10520008,2446.6,2446.5,1.03428832]
[1728834415811,8.17376,2446.9,2446.5,1.03428832]
[1728834416019,0.10520008,2446.8,2446.5,1.03428832]
[1728834417712,4.19217008,2446.8,2446.5,1.03428832]
[1728834417918,4.08715,2446.7,2446.5,1.03428832]
[1728834418154,4.0873,2446.6,2446.5,0.55]
[1728834418316,4.19251484,2446.6,2446.5,0.55]
[1728834419283,0.10521484,2446.6,2446.5,0.55]
[1728834420361,4.19251484,2446.6,2446.5,0.55]
[1728834422616,0.10521484,2446.6,2446.5,0.55]
[1728834422823,8.17406,2446.8,2446.5,0.55]
[1728834423115,0.10494706,2446.7,2446.5,1.07424948]
[1728834423487,4.08698,2446.8,2446.5,1.07424948]
[1728834423679,0.10494706,2446.6,2446.5,1.07424948]
[1728834423880,4.08698,2446.8,2446.5,1.07424948]
[1728834424110,0.10494706,2446.6,2446.5,1.07424948]
[1728834424408,4.08682,2446.9,2446.5,1.07424948]
[1728834424827,0.10495446,2446.8,2446.5,1.07424948]
[1728834425186,0.10495446,2446.8,2446.7,0.55]
[1728834425587,0.10495446,2446.8,2446.6,0.55]
[1728834427327,4.08713,2446.7,2446.4,0.7636]
[1728834427509,4.0878,2446.3,2446.2,0.8257]
[1728834427710,4.08805,2446.2,2446.0,0.8257]
[1728834427935,0.7879,2446.7,2446.0,0.8257]
[1728834428089,0.10506518,2446.1,2446.0,0.8257]
[1728834428292,4.08765,2446.4,2446.0,1.36237663]
[1728834428484,0.10506518,2446.1,2446.0,0.8257]
[1728834428691,4.08765,2446.4,2446.0,0.8257]
[1728834428889,0.10493968,2446.1,2446.0,0.8257]
[1728834429131,8.17542,2446.4,2446.1,0.55]
[1728834429300,4.0878,2446.3,2446.1,0.55]
[1728834430318,4.08765,2446.4,2446.1,0.55]
[1728834430528,4.08797,2446.2,2446.1,0.55]
[1728834430837,4.0883,2446.0,2445.8,0.865269]
[1728834432148,4.0883,2446.0,2445.9,0.55]
[1728834433941,0.7879,2446.3,2445.9,0.55]
[1728834434152,0.8494884,2446.6,2446.1,0.55]
[1728834434153,7.08743,2446.6,2446.1,0.55]
[1728834434454,7.08743,2446.6,2446.2,0.04597769]
[1728834434455,4.08747,2446.5,2446.2,0.04597769]
[1728834434653,4.08747,2446.5,2446.3,0.55]
[1728834435813,4.87085,2446.7,2446.3,0.55]
[1728834436057,4.87085,2446.7,2446.4,0.7882]
[1728834436058,0.10462221,2446.6,2446.4,0.7882]
[1728834436350,0.10462221,2446.6,2446.5,0.55]
[1728834436552,0.10462221,2446.6,2446.5,1.44552132]
[1728834436710,4.08701,2446.8,2446.5,1.44552132]
[1728834437233,0.10468132,2446.7,2446.5,1.44552132]
[1728834437547,4.0869,2446.9,2446.5,1.44552132]
[1728834437801,4.0869,2446.9,2446.2,4.63511777]
[1728834437802,4.19198132,2446.6,2446.2,1.31554777]
[1728834438086,0.10476252,2446.5,2446.3,0.55]
[1728834438443,4.87385,2446.7,2446.3,0.55]
[1728834438640,4.19210252,2446.6,2446.3,0.55]
[1728834440450,4.19210252,2446.6,2446.5,0.589558]
[1728834441280,4.19210252,2446.6,2446.5,0.039558]
[1728834442989,0.10476252,2446.6,2446.5,0.039558]
[1728834443198,0.10476252,2446.6,2446.5,0.589558]
[1728834447589,4.19206252,2446.6,2446.5,0.589558]
[1728834447762,5.80668277,2446.6,2446.5,0.039558]
[1728834447961,4.97876252,2446.6,2446.5,0.039558]
[1728834448198,4.19206252,2446.6,2446.5,0.039558]
[1728834448778,4.19206252,2446.6,2446.5,40.039558]
[1728834449097,4.19206252,2446.6,2446.5,40.589558]
[1728834449301,0.10476252,2446.6,2446.5,48.94609703]
[1728834449660,4.08681,2446.9,2446.6,0.55]
[1728834449864,0.10500612,2446.8,2446.6,0.55]
[1728834450279,4.08681,2446.9,2446.6,0.55]
[1728834450492,4.08664,2447.0,2446.8,0.55]
[1728834451197,0.10507993,2446.9,2446.8,0.55]
[1728834451861,4.19187993,2446.9,2446.8,0.55]
[1728834453619,0.10507993,2446.9,2446.8,0.55]
[1728834453989,4.19187993,2446.9,2446.8,0.55]
[1728834455320,0.10507993,2446.9,2446.8,0.92370568]
[1728834456190,4.19187993,2446.9,2446.8,0.92370568]
[1728834457208,0.10507993,2446.9,2446.8,0.92370568]
[1728834457416,0.10507993,2446.9,2446.8,0.98898601]
[1728834458170,4.19187993,2446.9,2446.8,0.98898601]
[1728834458375,4.19187993,2446.9,2446.8,0.92370568]
[1728834460425,4.19187993,2446.9,2446.8,0.55]
[1728834460723,4.08705,2446.8,2446.6,0.55]
[1728834461133,0.10520543,2446.7,2446.6,0.55]
[1728834461485,8.1737,2446.9,2446.6,0.55]
[1728834462024,0.10520543,2446.8,2446.6,0.55]
[1728834462184,0.10520543,2446.8,2446.7,4.65264826]
[1728834462719,4.08681,2446.9,2446.8,0.55]
[1728834463705,4.08665,2447.0,2446.8,0.55]
[1728834463881,4.0868,2446.9,2446.8,0.55]
[1728834465790,4.08665,2447.0,2446.8,0.55]
[1728834465975,8.17314,2447.1,2446.9,0.814]
[1728834466179,4.08663,2447.0,2446.9,1.364]
[1728834468186,4.08647,2447.1,2447.0,0.55]
[1728834468419,4.08624,2447.3,2447.0,0.55]
[1728834468728,4.08624,2447.3,2446.9,0.814]
[1728834468729,8.17179,2447.5,2447.2,0.55]
[1728834468964,8.17179,2447.5,2447.3,0.48932832]
[1728834469230,4.08547,2447.7,2447.4,0.55]
[1728834469599,8.17108,2447.7,2447.4,0.55]
[1728834469799,4.08547,2447.7,2447.4,0.55]
[1728834470006,4.08574,2447.6,2447.4,0.55]
[1728834470203,4.08547,2447.7,2447.4,0.55]
[1728834470404,4.08547,2447.7,2447.5,0.814]
[1728834470599,4.08563,2447.6,2447.5,1.364]
[1728834470803,4.08547,2447.7,2447.6,0.55]
[1728834471324,4.08532,2447.8,2447.6,0.55]
[1728834471832,4.08546,2447.7,2447.6,0.55]
[1728834473397,4.08532,2447.8,2447.6,0.55]
[1728834473597,4.08546,2447.7,2447.6,0.55]
[1728834473840,4.08532,2447.8,2447.6,0.55]
[1728834474241,4.08546,2447.7,2447.6,0.55]
[1728834474397,8.17075,2447.8,2447.6,0.55]
[1728834474600,4.08546,2447.7,2447.6,0.55]
[1728834475753,4.08591,2447.5,2447.3,0.48932832]
[1728834475937,4.08591,2447.5,2447.3,0.55]
[1728834476838,4.08591,2447.5,2447.3,0.95615684]
[1728834477444,4.0859,2447.5,2447.3,0.95615684]
[1728834478496,8.17179,2447.5,2447.3,0.55]
[1728834478699,8.17183,2447.5,2447.3,0.55]
[1728834478900,8.17183,2447.5,2447.3,0.9808]
[1728834479137,4.08589,2447.5,2447.3,0.9808]
[1728834479374,4.08596,2447.4,2447.3,0.55]
[1728834479581,4.08646,2447.1,2447.0,0.813]
[1728834480275,4.0863,2447.2,2447.0,0.813]
[1728834480579,4.08626,2447.3,2447.0,0.813]
[1728834480751,4.08626,2447.3,2447.1,0.55]
[1728834480953,4.18914643,2447.2,2447.1,0.55]
[1728834481473,4.0863,2447.2,2447.1,0.55]
[1728834481696,4.0862,2447.3,2447.1,0.55]
[1728834481886,4.08582,2447.5,2447.1,0.55]